fUSD/lending_fUSD_20240602
["ID","MTS","AMOUNT","RATE_DAILY","PERIOD"]
[328413832,1717367447827,-523.08907,0.00031362,7]
[328413833,1717367447837,-523.08907,0.00031362,7]
[328413834,1717367447846,-169.479171,0.00031362,7]
[328413835,1717367447856,-169.479171,0.00031362,7]
[328413836,1717367447865,-151.0,0.00031362,7]
[328413837,1717367447874,-377.076535,0.00031362,7]
[328413838,1717367447883,-225.565191,0.00031362,7]
[328413839,1717367447892,-377.076535,0.00031362,7]
[328413840,1717367447902,-151.0,0.00031362,7]
[328413841,1717367447912,-151.0,0.00031362,7]
[328413842,1717367447922,-151.0,0.00031362,7]
[328413843,1717367447930,-151.0,0.00031362,7]
[328413844,1717367447939,-151.0,0.00031362,7]
[328413845,1717367447949,-151.0,0.00031362,7]
[328413846,1717367447957,-151.0,0.00031362,7]
[328413847,1717367447967,-301.120175,0.00031362,7]
[328413848,1717367447983,-179.443217,0.00031362,7]
[328413849,1717367447991,-1101.237072,0.00031362,7]
[328413850,1717367448000,-1101.237072,0.00031362,7]
[328413851,1717367448009,-396.280785,0.00031362,7]
[328413852,1717367448020,-151.0,0.00031362,7]
[328413853,1717367448028,-396.280785,0.00031362,7]
[328413854,1717367448037,-211.336437,0.00031362,7]
[328413855,1717367448049,-211.336437,0.00031362,7]
[328413856,1717367448058,-151.0,0.00031362,7]
[328413857,1717367448067,-151.0,0.00031362,7]
[328413858,1717367448077,-341.994341,0.00031362,7]
[328413859,1717367448086,-341.994341,0.00031362,7]
[328413860,1717367448095,-150.0,0.00031376,2]
[328413861,1717367448104,-327.91963165,0.00031392,2]
[328413862,1717367448113,-8435.10716961,0.00031393,15]
[328413863,1717367448123,-18386.8274724,0.00031397,2]
[328413864,1717367448520,410.5918966,0.00019451,2]
[328413865,1717367464862,30891.42407787,0.00019451,2]
[328413866,1717367521132,407.04296718,0.00017259,2]
[328413890,1717368632214,-180.16,0.00021918,2]
[328413891,1717368632223,-574.14,0.00021994,2]
[328413892,1717368632233,-250.0,0.00022656,2]
[328413893,1717368632244,-250.0,0.00022737,2]
[328413894,1717368632254,-321.88,0.00022938,2]
[328413895,1717368632263,-500.0,0.00022955,2]
[328413896,1717368632272,-155.0,0.00023005,2]
[328413897,1717368632281,-366.993319,0.00023006,2]
[328413898,1717368632290,-598.88379725,0.00023122,2]
[328413899,1717368632302,-389.84087267,0.00023122,2]
[328413900,1717368632313,-488.38533008,0.00023122,2]
[328413901,1717368632323,-250.0,0.0002313,2]
[328413902,1717368632332,-499.99,0.00023209,2]
[328413903,1717368632341,-641.52,0.0002321,2]
[328413904,1717368632350,-690.03,0.00023347,2]
[328413905,1717368632360,-429.4709201,0.00023398,2]
[328413906,1717368632401,-326.91429722,0.00023398,2]
[328413907,1717368632413,-1172.04587229,0.00023398,2]
[328413908,1717368632424,-3415.57845701,0.00023398,2]
[328413909,1717368632436,-892.48325338,0.00023398,2]
[328413910,1717368632448,-184.32704669,0.00023499,2]
[328413911,1717368632460,-2.34739212,0.00023499,2]
[328413912,1717368632470,-442.90076878,0.00023499,2]
[328413913,1717368632479,-1426.36,0.00023588,2]
[328413914,1717368632489,-1426.36,0.00023588,2]
[328413915,1717368632498,-679.00674369,0.0002359,2]
[328413916,1717368632510,-679.0,0.0002359,2]
[328413917,1717368632524,-68.35325631,0.0002359,2]
[328413918,1717368632534,-403.78996871,0.0002359,2]
[328413919,1717368632545,-551.24148495,0.0002359,2]
[328413920,1717368632557,-471.32854634,0.0002359,2]
[328413922,1717368632566,-1426.36,0.0002359,2]
[328413924,1717368632575,-500.0,0.00023597,2]
[328413926,1717368632584,-500.0,0.00023597,2]
[328413928,1717368632593,-192.99907347,0.00023597,2]
[328413930,1717368632603,-500.0,0.00023597,2]
[328413932,1717368632612,-500.0,0.00023597,2]
[328413934,1717368632621,-489.43162165,0.00023597,2]
[328413936,1717368632630,-500.0,0.00023597,2]
[328413938,1717368632639,-500.0,0.00023597,2]
[328413940,1717368632648,-500.0,0.00023597,2]
[328413941,1717368632657,-500.0,0.00023597,2]
[328413942,1717368632666,-500.0,0.00023597,2]
[328413943,1717368632675,-500.0,0.00023597,2]
[328413944,1717368632684,-500.0,0.00023597,2]
[328413945,1717368632694,-500.0,0.00023597,2]
[328413946,1717368632703,-500.0,0.00023597,2]
[328413947,1717368632712,-196.25628528,0.00023597,2]
[328413948,1717368632721,-500.0,0.00023597,2]
[328413949,1717368632730,-500.0,0.00023597,2]
[328413950,1717368632740,-500.0,0.00023597,2]
[328413951,1717368632749,-500.0,0.00023597,2]
[328413952,1717368632758,-500.0,0.00023597,2]
[328413953,1717368632767,-500.0,0.00023597,2]
[328413954,1717368632776,-447.16135172,0.00023597,2]
[328413955,1717368632788,-52.83864828,0.00023597,2]
[328413956,1717368632797,-236.5556177,0.00023597,2]
[328413957,1717368632808,-263.4443823,0.00023597,2]
[328413958,1717368632817,-1031.71806703,0.00023597,2]
[328413959,1717368632826,-2351.21755067,0.00023598,2]
[328413960,1717368632837,-17247.8559485,0.00023598,2]
[328413961,1717368633102,-306.20467746,0.00023598,2]
[328413962,1717368633113,-4465.99103565,0.00023598,2]
[328413963,1717368633124,-483.71393226,0.00023598,2]
[328413964,1717368633135,-9202.32106482,0.00023598,2]
[328413965,1717368633146,-711.72882134,0.00023598,2]
[328413966,1717368633157,-287934.37623647,0.00023598,2]
[328413967,1717368633166,-319.74754324,0.00023599,2]
[328413968,1717368633175,-500.0,0.00023599,2]
[328413969,1717368633185,-500.0,0.00023599,2]
[328413970,1717368633194,-500.0,0.00023599,2]
[328413971,1717368633203,-232.15404637,0.00023599,2]
[328413972,1717368633212,-158.16601062,0.00023599,2]
[328413973,1717368633222,-496.3568617,0.00023599,2]
[328413974,1717368633231,-313.78030558,0.00023599,2]
[328413975,1717368633241,-212231.35036876,0.000236,2]
[328413976,1717368633250,-3745.79250923,0.0002381,2]
[328413977,1717368633260,-23900.0,0.00023833,2]
[328413978,1717368633269,-200.0,0.00023898,2]
[328413979,1717368633278,-168.0,0.00024,2]
[328413980,1717368633288,-165.9,0.00024022,2]
[328413981,1717368633297,-574.14,0.00024257,2]
[328413982,1717368633306,-154.44,0.00024384,2]
[328413983,1717368633316,-150.76,0.00024384,2]
[328413984,1717368633326,-442.90076876,0.00024699,2]
[328413985,1717368633335,-495.53212504,0.00024788,2]
[328413986,1717368633345,-54618.6507011,0.00024798,2]
[328413987,1717368633354,-54618.65070108,0.00024798,2]
[328413988,1717368633363,-388.02,0.00024807,2]
[328413989,1717368633372,-164.67,0.00024829,2]
[328413990,1717368633381,-1389.72657896,0.00024999,2]
[328413991,1717368633390,-1202.10102681,0.00025,2]
[328413992,1717368633399,-325.53303523,0.00025,2]
[328413993,1717368633408,-3185.36164122,0.000251,2]
[328413994,1717368633417,-169.0,0.00025358,2]
[328413995,1717368633426,-14275.45351485,0.00025655,2]
[328413996,1717368633438,-6828.9003,0.00025655,2]
[328413997,1717368633450,-6055.9025272,0.00025655,2]
[328413998,1717368633461,-22559.1213533,0.00025655,2]
[328413999,1717368633472,-896.40832532,0.00025655,2]
[328414000,1717368633483,-698.75396155,0.00025655,2]
[328414001,1717368633495,-280.16315981,0.00025655,2]
[328414010,1717368638262,-155.0,0.00023418,2]
[328414011,1717368638272,-3023.94755905,0.00025655,2]
[328414012,1717368638281,-442.90076876,0.00025899,2]
[328414013,1717368638291,-1340.67218573,0.00026,2]
[328414014,1717368638302,-996.7313497,0.00026,2]
[328414015,1717368638314,-1919.18039283,0.00026,2]
[328414016,1717368638323,-690.03,0.00026087,2]
[328414017,1717368638332,-164.67,0.00026199,2]
[328414018,1717368638342,-151.68,0.0002639,2]
[328414019,1717368638352,-284.38455671,0.000264,2]
[328414020,1717368638364,-2390.55985511,0.000264,2]
[328414021,1717368638375,-409.79909877,0.000264,2]
[328414022,1717368638386,-732.97400766,0.000264,2]
[328414026,1717368638505,-3385.96953395,0.000264,2]
[328414028,1717368638518,-1140.80910589,0.000264,2]
[328414031,1717368638531,-725.23046598,0.000264,2]
[328414033,1717368638543,-5731.89280292,0.000264,2]
[328414047,1717368638835,-1599.77159946,0.000264,2]
[328414048,1717368638846,-3730.36434643,0.000264,2]
[328414049,1717368638858,-5716.0877781,0.000264,2]
[328414050,1717368638868,-574.14,0.00026521,2]
[328414051,1717368638877,-2158.7722219,0.00026733,2]
[328414052,1717368638888,-5897.93599999,0.00026733,2]
[328414053,1717368638900,-3781.69999998,0.00026733,2]
[328414054,1717368638942,-6110.53733073,0.00026733,2]
[328414076,1717368641219,-2229.8616526,0.00026733,2]
[328414078,1717368641230,-34439.84349588,0.00026733,2]
[328414080,1717368641240,-1017.19544873,0.00027,2]
[328414082,1717368641250,-150.0,0.00027,2]
[328414084,1717368641260,-442.90076876,0.00027099,2]
[328414086,1717368641269,-500.0,0.00027247,2]
[328414088,1717368641278,-500.0,0.00027247,2]
[328414090,1717368641288,-151.48,0.00027397,2]
[328414092,1717368641297,-154.06,0.000274,2]
[328414094,1717368641306,-154.06,0.000274,2]
[328414096,1717368641316,-54618.65070108,0.00027811,2]
[328414098,1717368641325,-337.50680367,0.00028,7]
[328414100,1717368641334,-300.0,0.000282,2]
[328414102,1717368641343,-151.48,0.00028253,2]
[328414104,1717368641353,-442.90076876,0.000283,2]
[328414106,1717368641362,-500.0,0.00028343,2]
[328414108,1717368641371,-500.0,0.00028343,2]
[328414110,1717368641380,-161.71082563,0.00028425,2]
[328414112,1717368641389,-300.0,0.00028571,2]
[328414114,1717368641399,-1000.0,0.00028736,2]
[328414116,1717368641408,-574.14,0.00028785,2]
[328414118,1717368641417,-5819.68928052,0.000288,2]
[328414120,1717368641427,-690.03,0.00028826,2]
[328414122,1717368641436,-154.06,0.00028878,2]
[328414124,1717368641445,-47131.61681652,0.00028888,2]
[328414125,1717368641456,-7487.03388456,0.00028888,2]
[328414126,1717368641466,-16252.88874427,0.000289,7]
[328414127,1717368641475,-265.68702935,0.000289,2]
[328414129,1717368641485,-308.71703691,0.00028942,2]
[328414131,1717368641494,-3000.0,0.00029,2]
[328414133,1717368641504,-4163.8478063,0.00029,2]
[328414135,1717368641513,-151.48,0.0002911,2]
[328414137,1717368641525,-5819.68928043,0.000292,2]
[328414139,1717368641534,-790.35,0.0002925,2]
[328414141,1717368641543,-790.35,0.00029257,2]
[328414143,1717368641552,-790.35,0.00029265,2]
[328414145,1717368641561,-790.35,0.00029273,2]
[328414147,1717368641573,-790.35,0.0002928,2]
[328414148,1717368641582,-790.35,0.00029288,2]
[328414150,1717368641591,-790.35,0.00029296,2]
[328414152,1717368641602,-790.35,0.00029303,2]
[328414154,1717368641611,-790.35,0.00029311,2]
[328414155,1717368641620,-790.35,0.00029319,2]
[328414156,1717368641629,-790.35,0.00029327,2]
[328414157,1717368641638,-618.02796503,0.00029334,2]
[328414186,1717368643366,-154.458,0.00023418,2]
[328414187,1717368643376,-172.32203497,0.00029334,2]
[328414188,1717368643386,-790.35,0.00029342,2]
[328414189,1717368643395,-790.35,0.0002935,2]
[328414190,1717368643404,-790.35,0.00029357,2]
[328414191,1717368643413,-790.35,0.00029365,2]
[328414192,1717368643423,-790.35,0.00029373,2]
[328414193,1717368643432,-790.35,0.0002938,2]
[328414194,1717368643441,-790.35,0.00029388,2]
[328414195,1717368643450,-790.35,0.00029396,2]
[328414196,1717368643460,-500.0,0.00029439,2]
[328414197,1717368643469,-500.0,0.00029439,2]
[328414198,1717368643478,-442.90076876,0.000295,2]
[328414199,1717368643487,-5819.68928043,0.000296,2]
[328414200,1717368643496,-349.95,0.00029684,2]
[328414201,1717368643506,-600.0,0.000299,10]
[328414202,1717368643515,-151.48,0.00029966,2]
[328414203,1717368643530,-1395.519392,0.00029966,7]
[328414204,1717368643539,-151.0,0.00029966,7]
[328414205,1717368643549,-1395.519392,0.00029966,7]
[328414206,1717368643558,-151.0,0.00029966,7]
[328414207,1717368643570,-941.082839,0.00029966,7]
[328414208,1717368643579,-941.082839,0.00029966,7]
[328414209,1717368643588,-151.0,0.00029966,7]
[328414210,1717368643597,-151.0,0.00029966,7]
[328414211,1717368643607,-151.0,0.00029966,7]
[328414212,1717368643616,-151.0,0.00029966,7]
[328414213,1717368643625,-151.0,0.00029966,7]
[328414214,1717368643634,-151.0,0.00029966,7]
[328414215,1717368643643,-323.819905,0.00029966,7]
[328414216,1717368643652,-323.819905,0.00029966,7]
[328414217,1717368643662,-158.692134,0.00029966,7]
[328414218,1717368643670,-1110.11914274,0.00029966,2]
[328414219,1717368643739,-4117.60282167,0.00029966,2]
[328414220,1717368643748,-536.45915209,0.00029966,2]
[328414221,1717368643760,-3178.46617997,0.00029966,2]
[328414222,1717368643775,-306.856,0.00029966,2]
[328414223,1717368643850,-30416.96491147,0.00029966,2]
[328414224,1717368643977,-5368.05417489,0.00029966,2]
[328414225,1717368643989,-547.59336367,0.00029966,2]
[328414235,1717368646593,-8647.46572091,0.00029966,2]
[328414236,1717368646605,-5616.79119808,0.00029966,2]
[328414237,1717368646614,-151.0,0.00029967,7]
[328414238,1717368646623,-223.002738,0.00029967,7]
[328414239,1717368646632,-223.002738,0.00029967,7]
[328414240,1717368646642,-470.780163,0.00029967,7]
[328414241,1717368646651,-470.780163,0.00029967,7]
[328414242,1717368646660,-151.0,0.00029967,7]
[328414243,1717368646670,-151.0,0.00029967,7]
[328414244,1717368646679,-151.998453,0.00029967,7]
[328414245,1717368646688,-151.0,0.00029967,7]
[328414246,1717368646697,-168.702196,0.00029967,7]
[328414247,1717368646706,-151.0,0.00029967,7]
[328414248,1717368646715,-339.368882,0.00029967,7]
[328414250,1717368646724,-339.368882,0.00029967,7]
[328414252,1717368646733,-151.0,0.00029967,7]
[328414254,1717368646743,-155.0,0.0003,2]
[328414256,1717368646752,-29.72637059,0.0003,7]
[328414258,1717368646764,-3881.50594552,0.0003,7]
[328414260,1717368646773,-584.44509019,0.0003,4]
[328414261,1717368646782,-5819.68928043,0.0003,2]
[328414262,1717368646791,-10598.840791,0.0003,4]
[328414263,1717368646801,-193.365651,0.00030137,7]
[328414264,1717368646810,-193.365651,0.00030137,7]
[328414265,1717368646819,-100.02968633,0.0003031,2]
[328414266,1717368646830,-54.41031367,0.0003031,2]
[328414267,1717368646840,-5819.68928043,0.000304,2]
[328414268,1717368646849,-500.0,0.00030535,10]
[328414269,1717368646858,-500.0,0.00030535,10]
[328414270,1717368646867,-150.0,0.00030689,2]
[328414271,1717368646877,-150.0,0.00030689,2]
[328414272,1717368646886,-151.0,0.00030689,2]
[328414273,1717368646895,-442.90076876,0.000307,2]
[328414274,1717368646904,-2000.0,0.000307,4]
[328414275,1717368646913,-1411.99963714,0.0003078,11]
[328414276,1717368647326,-277.77979186,0.0003078,11]
[328414277,1717368647336,-156.54272279,0.00030796,7]
[328414278,1717368647346,-167.0,0.00030799,2]
[328414279,1717368647355,-261.27748735,0.000308,2]
[328414280,1717368647367,-5105.54247083,0.000308,2]
[328414281,1717368656498,158.84817497,0.0002,2]
[328414282,1717368671396,411.24369396,0.00019,2]
[328414283,1717368676068,282.54791112,0.00017259,2]
[328414285,1717368685189,155.0,0.0002,2]
[328414286,1717368715292,155.0,0.0002,2]
[328414287,1717368716382,209.19889504,0.00017259,2]
[328414288,1717368716866,226.50923576,0.000201,2]
[328414289,1717368716907,155.0,0.0002,2]
[328414290,1717368718013,1803.61552478,0.00017259,2]
[328414291,1717368723412,648.94255943,0.00018,2]
[328414292,1717368728060,2227.75244418,0.00017259,2]
[328414293,1717368730043,266.94315556,0.00017259,2]
[328414294,1717368740934,1777.58503617,0.0002,2]
[328414295,1717369017443,226.50923576,0.000201,2]
[328414296,1717369151417,411.24369396,0.00019451,2]
[328414298,1717369269136,303.70766195,0.00017259,2]
[328414299,1717369277515,226.50923576,0.000201,2]
[328414300,1717369494875,563.36849451,0.00017259,2]
[328414301,1717369660765,2000.0,0.00031,30]
[328414317,1717369832299,-338.98673525,0.00017259,2]
[328414318,1717369832309,-226.50923576,0.000201,2]
[328414319,1717369832319,-2026.81987899,0.00021286,2]
[328414324,1717369832474,-4661.75970362,0.00021286,2]
[328414325,1717369832483,-548.66488722,0.00021386,2]
[328414326,1717369832493,-179.37,0.00021918,2]
[328414327,1717369832502,-2040.83232223,0.00022,2]
[328414328,1717369832514,-935.25814264,0.00022,2]
[328414329,1717369832528,-6042.04340202,0.00022,2]
[328414330,1717369832537,-199.27679254,0.00022,2]
[328414331,1717369832548,-300.71320746,0.00022,2]
[328414332,1717369832558,-264.00728807,0.00022998,2]
[328414333,1717369832569,-525.362848,0.00022998,2]
[328414334,1717369832578,-181.77,0.00022999,2]
[328414335,1717369832587,-362.77,0.00024,2]
[328414336,1717369832596,-409.5228826,0.00024,2]
[328414337,1717369832640,-155.0,0.00023999,2]
[328414338,1717369832650,-63.91965903,0.00024,2]
[328414339,1717369832660,-157.84,0.00024384,2]
[328414340,1717369832670,-17084.84680902,0.000245,2]
[328414341,1717369832682,-2587.46900414,0.000245,2]
[328414342,1717369832691,-1250.0,0.00025,2]
[328414343,1717369832701,-928.90688563,0.00025,2]
[328414344,1717369832710,-572.51,0.00026021,2]
[328414345,1717369832719,-151.0,0.00026074,5]
[328414346,1717369832729,-1529.94595031,0.00026675,7]
[328414347,1717369832738,-1045.47618149,0.00026733,2]
[328414348,1717369832747,-218.61371265,0.00026733,2]
[328414349,1717369832757,-766.42814628,0.00027,2]
[328414350,1717369832768,-533.57185372,0.00027,2]
[328414351,1717369832778,-150.0,0.00027,2]
[328414352,1717369832787,-500.0,0.00027237,2]
[328414354,1717369832797,-500.0,0.00027237,2]
[328414356,1717369832806,-813.03672237,0.0002739,2]
[328414358,1717369832815,-151.0,0.00027405,5]
[328414360,1717369832825,-279.96,0.00027413,2]
[328414362,1717369832834,-500.0,0.00027435,2]
[328414364,1717369832844,-250.0,0.00027446,2]
[328414366,1717369832853,-165.9,0.00027459,2]
[328414368,1717369832862,-151.48,0.00027524,2]
[328414370,1717369832872,-320.76,0.00027534,2]
[328414372,1717369832881,-250.0,0.0002762,2]
[328414374,1717369832890,-200.0,0.00027735,2]
[328414376,1717369832899,-195.78,0.00027735,2]
[328414378,1717369832909,-489.61,0.00027797,2]
[328414380,1717369832918,-19189.62,0.00028001,2]
[328414382,1717369832928,-426.37,0.00028059,2]
[328414384,1717369832941,-572.51,0.00028285,2]
[328414386,1717369832950,-500.0,0.00028333,2]
[328414388,1717369832959,-200.0,0.00028333,2]
[328414390,1717369832969,-291.31,0.00028595,2]
[328414392,1717369832978,-291.31,0.00028603,2]
[328414393,1717369832989,-291.31,0.0002861,2]
[328414394,1717369832998,-291.31,0.00028618,2]
[328414395,1717369833007,-291.31,0.00028625,2]
[328414396,1717369833017,-291.31,0.00028633,2]
[328414397,1717369833028,-291.31,0.0002864,2]
[328414398,1717369833037,-291.31,0.00028648,2]
[328414399,1717369833046,-291.31,0.00028655,2]
[328414400,1717369833055,-291.31,0.00028663,2]
[328414401,1717369833064,-291.31,0.0002867,2]
[328414402,1717369833073,-291.31,0.00028678,2]
[328414403,1717369833084,-291.31,0.00028686,2]
[328414404,1717369833093,-151.48,0.00028688,2]
[328414405,1717369833102,-291.31,0.00028693,2]
[328414406,1717369833112,-291.31,0.00028701,2]
[328414407,1717369833123,-291.31,0.00028708,2]
[328414408,1717369833133,-291.31,0.00028716,2]
[328414409,1717369833143,-291.31,0.00028723,2]
[328414410,1717369833153,-291.31,0.00028731,2]
[328414411,1717369833162,-151.0,0.00028735,7]
[328414412,1717369833174,-291.31,0.00028738,2]
[328414413,1717369833183,-1000.0,0.0002876,2]
[328414414,1717369833192,-279.96,0.00028784,2]
[328414415,1717369833202,-2836.0,0.000288,2]
[328414416,1717369833211,-2654.0,0.000288,2]
[328414417,1717369833223,-500.0,0.000288,2]
[328414418,1717369833234,-265.68702935,0.00028999,2]
[328414419,1717369833245,-1350.0,0.00029,2]
[328414420,1717369833255,-4163.8478063,0.00029,2]
[328414421,1717369833265,-473.29431637,0.00029428,2]
[328414422,1717369833276,-600.0,0.00029429,2]
[328414423,1717369833285,-151.48,0.00029852,2]
[328414424,1717369833427,-203.52076681,0.00029964,2]
[328414425,1717369833437,-162.3456247,0.00029965,2]
[328414426,1717369833446,-304.89,0.00029981,2]
[328414427,1717369833457,-300.0,0.0003,7]
[328414428,1717369833467,-842.51,0.0003,2]
[328414429,1717369833476,-704.22,0.0003,2]
[328414430,1717369833486,-318.25,0.0003,2]
[328414431,1717369833496,-151.0,0.00030066,7]
[328414432,1717369833505,-500.0,0.00030136,4]
[328414433,1717369833515,-1499.8,0.00030136,4]
[328414434,1717369833524,-500.0,0.00030136,4]
[328414435,1717369833534,-500.0,0.00030136,4]
[328414436,1717369833543,-500.0,0.00030136,4]
[328414437,1717369833552,-500.0,0.00030136,4]
[328414438,1717369833561,-500.0,0.00030136,2]
[328414439,1717369833571,-507.30208474,0.00030136,4]
[328414440,1717369833581,-500.0,0.00030136,4]
[328414441,1717369833591,-228.94855012,0.00030136,4]
[328414442,1717369833601,-574.26,0.00030136,4]
[328414443,1717369833611,-500.0,0.00030136,4]
[328414444,1717369833620,-500.0,0.00030136,4]
[328414445,1717369833630,-523.0291875,0.00030136,4]
[328414446,1717369833639,-582.44,0.00030136,4]
[328414447,1717369833649,-500.0,0.00030136,4]
[328414448,1717369833659,-532.3983568,0.00030136,4]
[328414449,1717369833670,-508.38256456,0.00030136,4]
[328414450,1717369833679,-582.87,0.00030136,4]
[328414451,1717369833689,-500.0,0.00030136,4]
[328414452,1717369833698,-500.0,0.00030136,4]
[328414453,1717369833707,-660.89,0.00030136,4]
[328414454,1717369833718,-500.0,0.00030136,4]
[328414455,1717369833728,-500.0,0.00030136,4]
[328414456,1717369833737,-960.09,0.00030136,4]
[328414457,1717369833747,-521.57730919,0.00030136,4]
[328414458,1717369833756,-545.98,0.00030136,4]
[328414459,1717369833764,-1587.67,0.00030136,4]
[328414460,1717369833774,-500.0,0.00030136,4]
[328414461,1717369833784,-1478.71,0.00030136,4]
[328414462,1717369833793,-508.84070849,0.00030136,4]
[328414463,1717369833803,-500.0,0.00030136,4]
[328414464,1717369833812,-500.0,0.00030136,4]
[328414465,1717369833820,-523.56,0.00030136,4]
[328414466,1717369833830,-571.80665311,0.00030136,4]
[328414467,1717369833840,-759.23,0.00030136,4]
[328414468,1717369833850,-500.0,0.00030136,4]
[328414469,1717369833860,-500.0,0.00030136,4]
[328414470,1717369833871,-500.0,0.00030136,4]
[328414471,1717369833883,-500.0,0.00030136,4]
[328414472,1717369833894,-500.0,0.00030136,4]
[328414473,1717369833906,-554.70344748,0.00030136,4]
[328414474,1717369833916,-500.0,0.00030136,4]
[328414475,1717369833928,-500.0,0.00030136,4]
[328414476,1717369833941,-500.0,0.00030136,4]
[328414477,1717369833956,-509.46738368,0.00030136,4]
[328414478,1717369833966,-509.9341759,0.00030136,4]
[328414479,1717369833977,-500.0,0.00030136,4]
[328414480,1717369833988,-508.53613565,0.00030136,4]
[328414481,1717369833998,-500.0,0.00030136,4]
[328414482,1717369834007,-500.0,0.00030136,4]
[328414483,1717369834019,-893.98,0.00030136,4]
[328414484,1717369834030,-500.0,0.00030136,4]
[328414485,1717369834038,-500.0,0.00030136,4]
[328414486,1717369834048,-951.52,0.00030136,4]
[328414487,1717369834057,-514.46158926,0.00030136,4]
[328414488,1717369834066,-601.73,0.00030136,4]
[328414489,1717369834075,-584.68492294,0.00030136,4]
[328414490,1717369834085,-500.0,0.00030136,4]
[328414491,1717369834094,-500.0,0.00030136,4]
[328414492,1717369834103,-934.6,0.00030136,4]
[328414493,1717369834112,-500.0,0.00030136,4]
[328414494,1717369834122,-500.0,0.00030136,4]
[328414495,1717369834131,-516.65053499,0.00030136,4]
[328414496,1717369834140,-500.0,0.00030136,4]
[328414497,1717369834149,-500.0,0.00030136,4]
[328414498,1717369834159,-541.26804148,0.00030136,4]
[328414499,1717369834168,-500.0,0.00030136,4]
[328414500,1717369834177,-500.0,0.00030136,4]
[328414501,1717369834186,-571.73,0.00030136,4]
[328414502,1717369834195,-500.0,0.00030136,4]
[328414503,1717369834204,-500.0,0.00030136,4]
[328414504,1717369834213,-500.0,0.00030136,4]
[328414505,1717369834222,-500.0,0.00030136,4]
[328414506,1717369834231,-523.31389312,0.00030136,4]
[328414507,1717369834240,-500.0,0.00030136,4]
[328414508,1717369834249,-500.0,0.00030136,4]
[328414509,1717369834258,-500.0,0.00030136,4]
[328414510,1717369834267,-572.81,0.00030136,4]
[328414511,1717369834277,-500.0,0.00030136,4]
[328414512,1717369834286,-500.0,0.00030136,4]
[328414513,1717369834294,-201.43852237,0.00030136,4]
[328414514,1717369834303,-500.0,0.00030136,4]
[328414515,1717369834312,-527.13486856,0.00030136,4]
[328414516,1717369834321,-718.83,0.00030136,4]
[328414517,1717369834330,-500.0,0.00030136,4]
[328414518,1717369834340,-531.24321995,0.00030136,4]
[328414519,1717369834349,-500.0,0.00030136,4]
[328414520,1717369834358,-800.25,0.00030136,4]
[328414521,1717369834367,-518.43391095,0.00030136,4]
[328414522,1717369834376,-500.0,0.00030136,4]
[328414523,1717369834386,-500.0,0.00030136,4]
[328414524,1717369834395,-787.8,0.00030136,4]
[328414525,1717369834404,-279.96,0.00030155,2]
[328414526,1717369834412,-167.0,0.00030166,2]
[328414527,1717369834422,-1123.63739493,0.00030184,2]
[328414528,1717369834431,-150.0,0.0003019,20]
[328414529,1717369834440,-1144.99120878,0.0003038,2]
[328414530,1717369834449,-155.0,0.00030408,2]
[328414531,1717369834458,-500.0,0.0003041,4]
[328414532,1717369834467,-1499.8,0.0003041,4]
[328414533,1717369834476,-526.87611444,0.0003041,4]
[328414534,1717369834485,-500.0,0.0003041,4]